Cogmind - Beta 10.2 @@@ ROGUE MODE // 2021.10.23 @ 21:53:12 Player: Peace Result: Destroyed by Y-45 Defender with Beam Rifle Performance ------------- Evolutions (2) 1000 Regions Visited (5) 1000 Robots Destroyed (0) 0 Value Destroyed (10) 10 Prototype IDs (2) 40 Alien Tech Used (0) 0 Bonus (470) 470 TOTAL SCORE: 2520 Bonus ------- Pacifist 470 Cogmind --------- Core Integrity 0/550 Matter 189/300 Energy 99/100 System Corruption 0% Temperature Cool (18) Movement Core (100) Ox1 Location -8/Storage Parts ------- > --- POWER (1) -------- (None) > --- PROPULSION (2) --- (None) > --- UTILITY (6) ------ Visual Processing Unit Propulsion Shielding Propulsion Shielding Propulsion Shielding Propulsion Shielding Propulsion Shielding > --- WEAPON (2) ------- (None) > --- INVENTORY (4) ---- Heavy Mace Peak State ------------ > --- POWER ------------ (None) > --- PROPULSION ------- Improved Flight Unit > --- UTILITY ---------- Visual Processing Unit Propulsion Shielding Propulsion Shielding > --- WEAPON ----------- Advanced EMP Blaster Heavy Mace > --- INVENTORY -------- Propulsion Shielding Propulsion Shielding Propulsion Shielding [Rating: 14] Favorites ----------- Power None Propulsion Flight Unit Flight Unit Flight Unit Utility Propulsion Shielding Processor Visual Processing Unit Protection Propulsion Shielding Weapon Heavy Mace Launcher Advanced EMP Blaster Impact Weapon Heavy Mace Build | -11 -10 -10 -9 -8 -8 ------- Run | Scr Mat Min Mat Mat Sto Slots Evolved 4 | . . . 2 2 . Power . | . . . . . . Propulsion . | . . . . . . Utility 4 | . . . 2 2 . Weapon . | . . . . . . Parts Attached 14 | . 3 3 1 . 7 Power . | . . . . . . Engine . | . . . . . . Core . | . . . . . . Reactor . | . . . . . . Propulsion 4 | . 1 1 . . 2 Treads . | . . . . . . Leg . | . . . . . . Wheel . | . . . . . . Hover . | . . . . . . Flight 4 | . 1 1 . . 2 Utility 7 | . 2 1 1 . 3 Device . | . . . . . . Storage . | . . . . . . Processor 1 | . . . 1 . . Hackware . | . . . . . . Protection 6 | . 2 1 . . 3 Artifact . | . . . . . . Weapon 3 | . . 1 . . 2 Energy Gun . | . . . . . . Energy Cannon . | . . . . . . Ballistic Gun . | . . . . . . Ballistic Cannon . | . . . . . . Launcher 1 | . . . . . 1 Special Weapon . | . . . . . . Impact Weapon 2 | . . 1 . . 1 Slashing Weapon . | . . . . . . Piercing Weapon . | . . . . . . Special Melee Weapon . | . . . . . . Unidentified Prototypes 2 | . . . . . 2 Parts Lost 2 | . . . . 1 1 Power . | . . . . . . Propulsion 2 | . . . . 1 1 Utility . | . . . . . . Weapon . | . . . . . . Highest Loss Streak 1 | . . . . 1 1 Average Slot Usage (%) 41 | . 9 42 33 36 60 Flight 8 | . 3 14 11 9 7 Processor 4 | . . . . 9 9 Protection 27 | . 6 21 22 18 42 Impact Weapon 1 | . . 7 . . . Naked Turns 69 | . 69 . . . . Heaviest Build 5 | . 2 5 2 2 5 Greatest Support 6 | 3 4 4 4 4 6 Greatest Overweight (x) 1 | . . 1 . . 1 Average Overweight (x) . | . . . . . . Largest Inventory Capacity 4 | 4 4 4 4 4 4 Average Capacity 4 | 4 4 4 4 4 4 Most Carried 4 | . 4 4 4 4 4 Average Carried 2 | . 1 3 4 4 1 Final Capacity 4 | 4 4 4 4 4 4 Final Carried 4 | . 4 4 4 4 1 Class Distribution -------------------- 100% | Mutant Dominant Class ---------------- Mutant | -10/Materials Mutant | -10/Mines Mutant | -9/Materials Mutant | -8/Materials Mutant | -8/Storage Resources | -11 -10 -10 -9 -8 -8 ----------- Run | Scr Mat Min Mat Mat Sto Matter Collected 211 | 200 . . 11 . . Remotely . | . . . . . . Salvage Created . | . . . . . . Parts . | . . . . . . Haulers Intercepted . | . . . . . . Recyclers Shooed . | . . . . . . Parts Field Recycled . | . . . . . . Retrieved Matter . | . . . . . . Parts Self-Destructed . | . . . . . . Prevented . | . . . . . . Kills | -11 -10 -10 -9 -8 -8 ------- Run | Scr Mat Min Mat Mat Sto Combat Hostiles Destroyed . | . . . . . . Classes Destroyed . | . . . . . . Best Kill Streak . | . . . . . . Combat Bots Only . | . . . . . . Max Kills in Single Turn . | . . . . . . Gunslinging . | . . . . . . Exploded . | . . . . . . Melee . | . . . . . . Uniques/NPCs Destroyed . | . . . . . . Combat | -11 -10 -10 -9 -8 -8 -------- Run | Scr Mat Min Mat Mat Sto Damage Taken 692 | . 40 17 10 45 580 Core 611 | . 40 . 10 26 535 Absorbed by Shields . | . . . . . . Core Remaining (%) 93 | 100 . 84 97 . . Volleys Fired . | . . . . . . Largest . | . . . . . . Hottest . | . . . . . . Shots Fired . | . . . . . . Gun . | . . . . . . Cannon . | . . . . . . Launcher . | . . . . . . Special . | . . . . . . Kinetic . | . . . . . . Thermal . | . . . . . . Explosive . | . . . . . . Electromagnetic . | . . . . . . Robot Hit Streak . | . . . . . . Robot Miss Streak . | . . . . . . Penetration Max . | . . . . . . Secondary Targets . | . . . . . . Shots Hit Robots . | . . . . . . Core Hits 2 | . 2 . . . . Critical Hits . | . . . . . . Critical Kills . | . . . . . . Critical Parts Destroyed . | . . . . . . Melee Attacks 1 | . . . . . 1 Impact 1 | . . . . . 1 Slashing . | . . . . . . Piercing . | . . . . . . Sneak Attacks . | . . . . . . Combat Hostiles . | . . . . . . Follow-up Attacks . | . . . . . . Damage Inflicted 23 | . 16 . . . 7 Guns . | . . . . . . Cannons . | . . . . . . Explosions . | . . . . . . Melee . | . . . . . . Ramming 23 | . 16 . . . 7 Kinetic . | . . . . . . Thermal . | . . . . . . Explosive . | . . . . . . Electromagnetic . | . . . . . . Impact . | . . . . . . Slashing . | . . . . . . Piercing . | . . . . . . Highest Corruption . | . . . . . . Average Corruption . | . . . . . . Corruption Purged . | . . . . . . Overload Shots . | . . . . . . Overflow Damage . | . . . . . . Projectiles . | . . . . . . Explosions . | . . . . . . Melee . | . . . . . . Knockbacks . | . . . . . . Impact . | . . . . . . Kinetic . | . . . . . . Secondary . | . . . . . . Self-Inflicted Damage 9 | . 6 . . . 3 Shots . | . . . . . . Rammed 7 | . 5 . . . 2 Targets Rammed 7 | . 5 . . . 2 Kicked . | . . . . . . Crushed . | . . . . . . Highest Temperature . | . . . . . . Average Temperature . | . . . . . . Received Heat Transfer 138 | . 12 . . 9 117 Siege Activations . | . . . . . . Robots Corrupted . | . . . . . . Combat Hostiles . | . . . . . . Parts Fried . | . . . . . . Impact Corruptions . | . . . . . . Robots Melted . | . . . . . . Combat Hostiles . | . . . . . . Parts Melted . | . . . . . . Heat Transferred . | . . . . . . Parts Sabotaged . | . . . . . . Parts Stolen . | . . . . . . Parts Stripped . | . . . . . . Power Chain Reactions . | . . . . . . Missiles Intercepted . | . . . . . . Alert | -11 -10 -10 -9 -8 -8 ------- Run | Scr Mat Min Mat Mat Sto Peak Influence 317 | . 15 5 91 49 317 Initial 38 | . . 5 1 38 20 Average 55 | . 3 5 42 42 101 Maximum Alert Level 1 | . . . . . 1 Low Security (%) 90 | 100 100 100 100 100 79 Level 1 9 | . . . . . 20 Level 2 . | . . . . . . Level 3 . | . . . . . . Level 4 . | . . . . . . Level 5 . | . . . . . . High Security . | . . . . . . Max Security . | . . . . . . Squads Dispatched 5 | . 2 . 1 . 2 Investigation 1 | . 1 . . . . Extermination . | . . . . . . Reinforcement 4 | . 1 . 1 . 2 Assault . | . . . . . . Garrison . | . . . . . . Intercept . | . . . . . . Construction Impeded . | . . . . . . Haulers Reinforced . | . . . . . . Stealth | -11 -10 -10 -9 -8 -8 --------- Run | Scr Mat Min Mat Mat Sto Distress Signals 3 | . . . 2 1 . Communications Jammed . | . . . . . . Distress Signals . | . . . . . . Times Spotted 47 | . 3 . 12 12 20 Peak Tracking Total 14 | . 2 . 10 11 14 Tactical Retreats 4 | . . . 1 . 3 Traps | -11 -10 -10 -9 -8 -8 ------- Run | Scr Mat Min Mat Mat Sto Traps Triggered 3 | . 1 1 . . 1 Indirectly . | . . . . . . Trap Hack Attempts . | . . . . . . Triggered . | . . . . . . Disarmed . | . . . . . . Reprogrammed . | . . . . . . Reused . | . . . . . . Traps Extracted . | . . . . . . Installed . | . . . . . . Triggered . | . . . . . . Machines | -11 -10 -10 -9 -8 -8 ---------- Run | Scr Mat Min Mat Mat Sto Machines Disabled 1 | . . . . . 1 Max in Single Turn 1 | . . . . . 1 Garrison Access 1 | . . . . . 1 Machines Sabotaged . | . . . . . . Garrisons Compromised . | . . . . . . Overloaded Fab Kills . | . . . . . . Fab Network Shutdowns . | . . . . . . Hacking | -11 -10 -10 -9 -8 -8 --------- Run | Scr Mat Min Mat Mat Sto Machines Accessed 11 | . 2 1 1 2 5 Terminals 9 | . 2 . 1 2 4 Fabricators . | . . . . . . Repair Stations . | . . . . . . Recycling Units . | . . . . . . Scanalyzers . | . . . . . . Garrison Access 1 | . . . . . 1 Total Hacks 18 | . 4 1 1 5 7 Successful 5 | . . 1 . 1 3 Failed 13 | . 4 . 1 4 4 Catastrophic 4 | . 2 . . . 2 Database Lockouts . | . . . . . . Manual 13 | . 4 . 1 5 3 Terminals 15 | . 4 . 1 5 5 Fabricators . | . . . . . . Repair Stations . | . . . . . . Recycling Units . | . . . . . . Scanalyzers . | . . . . . . Garrison Access 2 | . . . . . 2 Terminal Hacks 4 | . . 1 . 1 2 Open Door 2 | . . 1 . . 1 Terminal Index 1 | . . . . 1 . Locate Traps 1 | . . . . . 1 Fabricator Hacks . | . . . . . . Repair Station Hacks . | . . . . . . Recycling Unit Hacks . | . . . . . . Scanalyzer . | . . . . . . Garrison Access Hacks 1 | . . . . . 1 Seal Access 1 | . . . . . 1 Unauthorized Hacks . | . . . . . . Terminals . | . . . . . . Fabricators . | . . . . . . Repair Stations . | . . . . . . Recycling Units . | . . . . . . Scanalyzers . | . . . . . . Garrison Access . | . . . . . . Data Cores Recovered . | . . . . . . Used . | . . . . . . Hacking Detections 10 | . 2 . 1 2 5 Full Trace Events . | . . . . . . Feedback Events . | . . . . . . Feedback Blocked . | . . . . . . Robot Schematics Acquired . | . . . . . . Robots Built . | . . . . . . Matter . | . . . . . . Time . | . . . . . . Total Robot Build Rating . | . . . . . . Part Schematics Acquired . | . . . . . . Parts Built . | . . . . . . Matter . | . . . . . . Time . | . . . . . . Total Part Build Rating . | . . . . . . Parts Repaired . | . . . . . . Time . | . . . . . . Parts Recycled . | . . . . . . Recycled Matter . | . . . . . . Retrieved Matter . | . . . . . . Retrieved Components . | . . . . . . Parts Scanalyzed . | . . . . . . Part Schematics Acquired . | . . . . . . Parts Damaged . | . . . . . . Bothacking | -11 -10 -10 -9 -8 -8 ------------ Run | Scr Mat Min Mat Mat Sto Used RIF Installer . | . . . . . . Robots Hacked . | . . . . . . Non-combat . | . . . . . . Combat . | . . . . . . Robot Hacks Applied . | . . . . . . Relay Couplers Released . | . . . . . . Robots Rewired . | . . . . . . Allies Hacked . | . . . . . . Hacks Repelled . | . . . . . . Allies | -11 -10 -10 -9 -8 -8 -------- Run | Scr Mat Min Mat Mat Sto Total Allies . | . . . . . . Largest Group . | . . . . . . Highest-Rated Group . | . . . . . . Highest-Rated Ally . | . . . . . . Total Orders . | . . . . . . Ally Attacks . | . . . . . . Total Damage . | . . . . . . Kills . | . . . . . . Allies Corrupted . | . . . . . . Allies Melted . | . . . . . . Intel | -11 -10 -10 -9 -8 -8 ------- Run | Scr Mat Min Mat Mat Sto Robot Analysis Total . | . . . . . . Derelict Logs Recovered 2 | . . 2 . . . Drone Launches . | . . . . . . Drone Recoveries . | . . . . . . Exploration | -11 -10 -10 -9 -8 -8 ------------- Run | Scr Mat Min Mat Mat Sto Turns Passed 487 | 10 89 65 73 34 216 Spaces Moved 909 | 19 149 146 178 83 334 Core 201 | 19 125 2 . 5 50 Treads . | . . . . . . Legs . | . . . . . . Wheels . | . . . . . . Hover . | . . . . . . Flight 708 | . 24 144 178 78 284 Fastest Speed 35 | 50 40 40 40 40 35 Average Speed 43 | 50 48 40 40 40 43 Slowest Speed 120 | 50 50 120 40 50 100 Overloaded Moves . | . . . . . . Propulsion Burnouts . | . . . . . . Robots Hopped 22 | . 1 1 4 . 16 Cave-ins Triggered . | . . . . . . Exploration Rate (%) 28 | 4 36 32 22 14 64 Regions Visited 5 Branch Regions 2 Pre-discovered Areas 1 | . . 1 . . . Known Exits Taken . | . . . . . . Unknown Exits Taken 5 | 1 1 1 1 1 . Scrap Searched . | . . . . . . Spaces Dug . | . . . . . . Terrain Destroyed . | . . . . . . Melee . | . . . . . . Projectile . | . . . . . . AOE . | . . . . . . Terrain Rammed . | . . . . . . Walls Destroyed . | . . . . . . Machines Disabled . | . . . . . . Actions | -11 -10 -10 -9 -8 -8 --------- Run | Scr Mat Min Mat Mat Sto Total 972 | 18 162 149 174 82 387 Wait 58 | . 3 . . . 55 Move 864 | 18 146 143 169 82 306 Hop 18 | . 1 1 4 . 12 Pick Up 5 | . 4 . . . 1 Fast Attach 9 | . 3 2 1 . 3 Attach 5 | . . 1 . . 4 Detach 2 | . . 1 . . 1 Swap . | . . . . . . Drop 3 | . . 1 . . 2 Fire . | . . . . . . Melee 1 | . . . . . 1 Ram 7 | . 5 . . . 2 Kick . | . . . . . . Crush . | . . . . . . Escape Stasis . | . . . . . . Rewire . | . . . . . . Trap . | . . . . . . Miscellaneous . | . . . . . . Route ------- -11/Scrapyard -10/Materials -10/Mines -9/Materials -8/Materials -8/Storage History --------- Turn | Location | Event 2 | -11/Scrapyard | Discovered new exit (range 16) 11 | -11/Scrapyard | Entered Materials 96 | -10/Materials | Discovered new exit (range 8) 100 | -10/Materials | Entered Mines 122 | -10/Mines | Met a Derelict who couldn't figure out how to use a Trap Extractor 150 | -10/Mines | Learned location of Mines (-9) 153 | -10/Mines | Found a hidden stash of uninstalled traps 160 | -10/Mines | Discovered new exit (range 10) 163 | -10/Mines | Learned Materials terminal intel 165 | -10/Mines | Entered Materials 165 | -9/Materials | Evolved 2 slots: Utility x2 166 | -9/Materials | Loaded intel: 12 terminal locations 237 | -9/Materials | Discovered new exit (range 3) 238 | -9/Materials | Entered another Materials area 238 | -8/Materials | Evolved 2 slots: Utility x2 265 | -8/Materials | Discovered new exit (range 18) 272 | -8/Materials | Entered Storage 316 | -8/Storage | Build established: Mutant 463 | -8/Storage | Core integrity fell below 50% 485 | -8/Storage | Core integrity fell below 20% 488 | -8/Storage | Destroyed by Y-45 Defender with Beam Rifle Last Messages --------------- 6x Shock Trap Map updated. 00401_ K-01 Serf collects debris. 00406_ Connecting with Garrison Access... >>Seal Access door sealed. 00415_ A derelict emerges from hiding: "Psst-beep. Hey you, we've already cleared out from here, don't stick around. I stayed behind to warn any stragglers, and you certainly look like you're straggling." 00425_ K-01 Serf collects debris. 00432_ Connecting with Door Terminal... >>Open Sealed Heavy Doors opened. 00444_ Connecting with Door Terminal... 00450_ Imp. Flight Unit destroyed. 00459_ O-16 Technician: "IFF HANDSHAKE FAILED. SECURING TERMINAL." 00463_ ALERT: Hostiles spotted, dispatching reinforcements to Terminal S004. 00475_ K-01 Serf cleans the Storage Shell. 00484_ Slammed into Y-45 Defender. Map ----- +----------------------------------------------------+ | | | | | | | | | | | | | | | | | ?????????????????????????????????????????????????? | | ??????????????????????????????##?????????????????? | | ???????????????????????####### ###???????????????? | | ???????????????????????# #???????????????? | | ???????????????????????# "" #???????????????? | | ????#####??????????????# "T // #???????????????? | | ????#***#?????########## "" // #???????????????? | | ????#***#?????# # // #???????????????? | | ????# #?????# # #????????????#### | | ????# ?###### # ?????########## | | #####+#### # #? ???????# ? # | | # """""" #?##/########## """" # | | + "????" ### + # " ]"" # | | ##/####### # "????" + Y#YY # "=[""" # | | # ### ## "????" ### s # """= " + | | # #?# ## ??? #?# # """""" # ""[[] # | | # #?# #########+### # "??????# """" # | | #""" ### @ # "??????# # | | #""" + Y # """""" # # | | #""" ### ########### ########## | | # #?# #?????????# #????????# | | #""" #?# #???################????????# | | #""" #?###### #?? #?????????????????# | | #""" #?????## ##? """ #?????????????????# | | # #?????# # """ #?????????????????# | | ############### # """ """#??????????????# | | ?????# + """#??????????????# | | ?????# ### ## # """ R"#??????????????# | | ???### ###+###/### """ ""????????????????# | | ?###T# / #? """ #?????????????????# | | ?#] / ### """""" #? !#?????????????????# | | ?##### #?# "????? #??######??????????????????# | | ?????# #?#??????? #??????????????????????????# | | ?????# #????????? #??????????????????????????# | | ######/##???????? #??????????????????????????# | | #???????? #??????????????????????????# | | """ #???????? #??????????????????????????# | | """ ############??????????????????????????# ^ | | """ # #??????????????????????????# | | ! / #??????????????????????????# | | """ # #??????????????????????????# | | """ ##/##/######??????????????????????????# | +----------------------------------------------------+ Best States ------------- Heat Dissipation 31 Energy Generation 5 Energy Capacity 100 Matter Stores 300 Matter Capacity 300 Sight Range 18 Terrain Scan Density 10 Propulsion Shielding 33 Evasion (%) 63 Item Schematics ----------------- None Robot Schematics ------------------ None Fabricated ------------ Nothing Alien Tech Used ----------------- None Achievements -------------- None Challenges ------------ None Game ------ Seed ExplosiveCoolingWell Manual? 0 Play Time 00:08:08 Cumulative 75.3 hours Start 2021.10.23 @ 21:45:20 End 2021.10.23 @ 21:53:12 Sessions 1 Manual Loads 0 Difficulty Rogue Special Mode None Game No. 104 Rogue 104 Adventurer 0 Explorer 0 Win Type - Total 0 Types 0/0/0/0/0/0/0/0/0 Lore% 38 Gallery% 55 Achievement% 37 Wizard Run 0 Options --------- ASCII 0 Keyboard 1 Movement Vi Keybinds 0 Fullscreen 1 Font 18/SmallcapsGlow Map View 76x50 Tactical HUD 1 Map Filters NONE Filters NONE Steam 1 RUN: dfc5df80-373e-43c8-b8a4-b83416f4e474